Cogmind - Beta 15 @@@ ROGUE MODE // 2025.10.19 @ 14:20:14 Player: aliser Result: Destroyed by S-27 Virus with Autogun Performance ------------- Evolutions (6) 3000 Regions Visited (17) 3400 Robots Destroyed (168) 840 Value Destroyed (7286) 7286 Prototype IDs (4) 80 Alien Tech Used (0) 0 Bonus (2224) 2224 TOTAL SCORE: 16830 Bonus ------- High Alert Combat Kills 460 Follower Combat Kills 364 Entered Garrisons 400 Used RIF Installer 1000 Cogmind --------- Core Integrity 0/1150 Matter 138/300 Energy 83/100 System Corruption 22% Temperature Cool (0) Movement Core (50) Location -4/Garrison Parts ------- > --- POWER (2) -------- (None) > --- PROPULSION (4) --- (None) > --- UTILITY (10) ----- Graphene Brace > --- WEAPON (3) ------- (None) > --- INVENTORY (5) ---- Light Fission Core Quantum Capacitor Wave Gun Peak State ------------ > --- POWER ------------ Light Antimatter Reactor Mini Fusion Reactor > --- PROPULSION ------- Improved Treads Improved Treads Medium Treads Advanced Medium Treads > --- UTILITY ---------- Improved Cooling System Advanced Coolant Injector High-capacity Storage Unit Advanced Sensor Array Long-range Terrain Scanner Improved Targeting Computer Armor Integrity Analyzer Quantum Capacitor Relay Coupler [Hunter] > --- WEAPON ----------- Heavy Phase Cannon Enhanced Nova Cannon Enhanced Nova Cannon > --- INVENTORY -------- Light Ion Engine Light Fission Core Carbon-fiber Leg Centrium Wheel Advanced Heat Sink High-capacity Matter Pod Structural Scanner Advanced Signal Interpreter Stasis Canceller Relay Coupler [Cutter] Relay Coupler [Specialist] High-powered Tractor Beam Improved Field Recycling Unit Wave Gun Heavy Plasma Cannon KE Penetrator Railgun Remote Datajack Plasma Cutter Ripper [Rating: 111] Favorites ----------- Power Improved Deuterium Engine Engine Improved Deuterium Engine Power Core Micro Nuclear Core Reactor Light Antimatter Reactor Propulsion Light Treads Treads Light Treads Leg Carbon-fiber Leg Wheel Wheel Utility High-capacity Storage Unit Device Improved Heat Sink Storage High-capacity Storage Unit Processor Armor Integrity Analyzer Hackware Relay Coupler [Sentry] Protection Hardened Medium Armor Plating Weapon Enhanced Nova Cannon Energy Gun Field Laser Energy Cannon Enhanced Nova Cannon Ballistic Gun Hypervelocity Gauss Rifle Ballistic Cannon Assault Cannon Launcher Advanced EMP Blaster Special Weapon Remote Datajack Impact Weapon Heavy Flail Slashing Weapon Ripper Special Melee Weapon Improved Datajack Build | -11 -10 -10 -9 -9 -8 -8 -8 -7 -7 -7 -6 -5 -5 -4 -4 -4 -4 ------- Run | Yrd Mat Min Mat Min Mat Gar Mat Fac Was Fac Fac Fac Ext Fac Was Fac Gar Slots Evolved 12 | . . . 2 . 2 . . 2 . . 2 2 . 2 . . . Power 1 | . . . . . . . . . . . . . . 1 . . . Propulsion 2 | . . . 1 . 1 . . . . . . . . . . . . Utility 8 | . . . 1 . 1 . . 2 . . 1 2 . 1 . . . Weapon 1 | . . . . . . . . . . . 1 . . . . . . Parts Attached 193 | 6 2 . 16 1 4 14 11 14 2 4 30 9 43 28 . 7 2 Power 22 | 1 . . 3 1 . 2 . 3 . . 4 . 5 3 . . . Engine 14 | 1 . . 3 1 . 2 . 2 . . 3 . 2 . . . . Core 6 | . . . . . . . . 1 . . 1 . 3 1 . . . Reactor 2 | . . . . . . . . . . . . . . 2 . . . Propulsion 48 | 2 . . 4 . 2 5 1 3 1 . 6 1 15 4 . 4 . Treads 32 | 2 . . 2 . 2 5 1 3 1 . 4 1 5 3 . 3 . Leg 8 | . . . . . . . . . . . 1 . 7 . . . . Wheel 8 | . . . 2 . . . . . . . 1 . 3 1 . 1 . Hover . | . . . . . . . . . . . . . . . . . . Flight . | . . . . . . . . . . . . . . . . . . Utility 77 | 1 2 . 5 . 1 5 3 6 1 3 13 4 17 12 . 3 1 Device 36 | . . . 2 . . 2 . 2 . 2 6 3 5 10 . 3 1 Storage 3 | 1 1 . 1 . . . . . . . . . . . . . . Processor 5 | . . . . . . . . . . 1 2 . 1 1 . . . Hackware 8 | . . . . . . . 1 2 . . 2 . 2 1 . . . Protection 25 | . 1 . 2 . 1 3 2 2 1 . 3 1 9 . . . . Artifact . | . . . . . . . . . . . . . . . . . . Weapon 46 | 2 . . 4 . 1 2 7 2 . 1 7 4 6 9 . . 1 Energy Gun 12 | . . . . . 1 2 2 . . . 2 1 . 3 . . 1 Energy Cannon 7 | . . . . . . . . . . . . 2 1 4 . . . Ballistic Gun 12 | 2 . . 1 . . . 2 . . . 2 . 3 2 . . . Ballistic Cannon 4 | . . . 1 . . . 1 1 . 1 . . . . . . . Launcher 2 | . . . . . . . 1 . . . . . 1 . . . . Special Weapon 2 | . . . . . . . . . . . 2 . . . . . . Impact Weapon 3 | . . . 1 . . . . 1 . . . 1 . . . . . Slashing Weapon 2 | . . . . . . . . . . . 1 . 1 . . . . Piercing Weapon . | . . . . . . . . . . . . . . . . . . Special Melee Weapon 2 | . . . 1 . . . 1 . . . . . . . . . . Unidentified Prototypes 4 | . . . . . . . 2 . . . . . . 2 . . . Corrupted Parts 10 | . . . 2 . . . . . . . 5 3 . . . . . System Corruption 81 | . . . 20 . . . . . . . 40 21 . . . . . Parts Lost 93 | . . . 10 . 2 7 3 1 1 . 26 4 13 22 . . 4 Power 8 | . . . 2 . . 1 . . . . 3 . 1 1 . . . Propulsion 25 | . . . 2 . . 1 1 . . . 8 2 3 5 . . 3 Utility 38 | . . . 3 . 2 3 . 1 1 . 9 1 6 11 . . 1 Weapon 22 | . . . 3 . . 2 2 . . . 6 1 3 5 . . . Highest Loss Streak 13 | . . . 8 . 1 3 2 1 1 . 12 3 4 13 . . 4 To Critical Strikes 4 | . . . 1 . . . . . . . 1 . . 2 . . . Average Backups 16 | 1 4 6 8 12 18 19 19 18 18 19 18 14 18 18 4 3 2 Power 2 | . 1 1 1 2 4 4 3 1 2 2 2 1 2 1 1 1 . Propulsion 1 | . . . . 3 5 4 1 2 1 1 . . . 1 1 . . Utility 8 | . 1 3 4 6 7 8 11 9 8 10 9 8 8 8 2 1 1 Weapon 3 | . 1 2 1 1 1 2 3 3 5 4 3 1 4 4 . . 1 Tool/Special . | . . . . . . . . . . . . . . . . . . Unused Backups 36 | . . . . . 1 8 8 1 . 3 4 . 3 7 . 1 . Power 5 | . . . . . . . 4 . . . . . . 1 . . . Propulsion 6 | . . . . . 1 4 . . . . 1 . . . . . . Utility 16 | . . . . . . 3 3 1 . 1 2 . 1 4 . 1 . Weapon 8 | . . . . . . 1 1 . . 2 1 . 2 1 . . . Tool/Special 1 | . . . . . . . . . . . . . . 1 . . . Average Slot Usage (%) 88 | . 90 100 82 100 83 98 99 96 100 100 89 73 86 90 . 22 25 Engine 5 | . 14 14 10 11 9 9 9 4 7 7 5 2 . 1 . . . Reactor 1 | . . . . . . . . . . . . . . 7 . . . Treads 21 | . 28 28 17 22 23 36 35 30 30 30 20 8 6 18 . 12 13 Leg 1 | . . . . . . . . . . . . . 8 . . . . Wheel 1 | . . . 5 11 8 . . . . . . 4 4 . . . . Device 12 | . . . 6 . . 9 12 7 7 12 10 20 19 19 . 9 10 Storage 6 | . 14 14 11 11 9 9 9 7 7 7 6 5 5 4 . . . Processor 5 | . . . . . . . . . . 4 12 5 6 9 . . . Hackware 4 | . . . . . . . 5 14 15 9 4 . 3 3 . . . Protection 9 | . 5 14 12 22 14 15 9 11 15 9 6 3 7 9 . . . Energy Gun 3 | . . . . . 1 16 11 . . . . 5 . . . . . Energy Cannon 2 | . . . . . . . . . . . . 5 3 11 . . . Ballistic Gun 3 | . 28 28 15 10 7 . 3 2 . . 1 . 5 . . . . Ballistic Cannon 3 | . . . . 11 9 1 1 4 7 9 11 . . . . . . Impact Weapon 2 | . . . 4 . . . . 4 . 4 3 4 2 . . . . Peak Build Rating 111 | 6 7 7 11 14 18 27 28 43 43 45 53 72 89 111 1 53 65 Average Rating 48 | 4 6 7 8 12 15 22 25 35 42 44 48 59 69 90 1 36 39 On Entrance 24 | . 6 7 7 11 14 18 27 27 43 43 45 25 59 67 1 1 42 Naked Turns 134 | . . . . . . . . . . . . . . 81 47 6 . Heaviest Build 123 | 14 22 22 53 53 55 58 65 79 79 79 83 95 108 123 . 3 2 Greatest Support 135 | 40 40 40 40 10 83 83 83 96 96 96 96 23 89 104 3 3 135 Greatest Overweight (x) 28 | 1 . . 14 5 5 . . . . . 24 28 8 4 . . . Average Overweight (x) 1 | . . . 2 5 4 . . . . . . 6 1 . . . . Largest Inventory Capacity 20 | 8 10 10 20 20 20 20 20 20 20 20 20 20 20 20 5 5 5 Average Capacity 18 | 7 8 10 16 20 20 20 20 20 20 20 20 20 20 19 5 5 5 Most Carried 20 | 4 6 7 11 16 20 20 20 20 20 20 20 17 20 20 4 5 4 Average Carried 17 | 1 4 6 8 12 18 19 19 18 18 19 18 14 18 18 4 4 3 Final Capacity 20 | 8 10 10 20 20 20 20 20 20 20 20 20 20 20 5 5 5 5 Final Carried 20 | 3 6 7 11 16 20 20 20 20 18 19 18 15 20 4 4 4 4 Class Distribution -------------------- 35% | Bothacker-Mutant 33% | Scavenger-Mutant 11% | Scavenger-Gunner 10% | Mutant 5% | Scavenger-Tank 3% | Bothacker-Skirmisher Dominant Class ---------------- Mutant | -10/Materials Mutant | -10/Mines Mutant | -9/Materials Scavenger-Mutant | -9/Mines Scavenger-Mutant | -8/Materials Scavenger-Mutant | -8/Garrison Bothacker-Mutant | -8/Materials Bothacker-Mutant | -7/Factory Bothacker-Mutant | -7/Waste Bothacker-Mutant | -7/Factory Bothacker-Mutant | -6/Factory Scavenger-Mutant | -5/Factory Scavenger-Mutant | -5/Extension Scavenger-Gunner | -4/Factory Mutant | -4/Waste Mutant | -4/Factory Mutant | -4/Garrison Resources | -11 -10 -10 -9 -9 -8 -8 -8 -7 -7 -7 -6 -5 -5 -4 -4 -4 -4 ----------- Run | Yrd Mat Min Mat Min Mat Gar Mat Fac Was Fac Fac Fac Ext Fac Was Fac Gar Matter Collected 5868 | 299 19 103 416 111 261 166 200 532 . 267 1046 357 1586 497 . . 8 Remotely 40 | . . . 30 . . . . . . . . . . 10 . . . Salvage Created 7644 | 98 50 138 544 131 256 1068 398 322 . 51 908 457 1478 1745 . . . Parts 341 | 3 3 7 40 6 13 55 21 14 . 2 35 11 63 68 . . . Haulers Intercepted 3 | . . . . . . . 1 . . . . . . 2 . . . Recyclers Shooed 6 | 1 . . . 1 . . . . . . 1 2 1 . . . . Parts Field Recycled . | . . . . . . . . . . . . . . . . . . Retrieved Matter . | . . . . . . . . . . . . . . . . . . Parts Self-Destructed . | . . . . . . . . . . . . . . . . . . Prevented . | . . . . . . . . . . . . . . . . . . Kills | -11 -10 -10 -9 -9 -8 -8 -8 -7 -7 -7 -6 -5 -5 -4 -4 -4 -4 ------- Run | Yrd Mat Min Mat Min Mat Gar Mat Fac Was Fac Fac Fac Ext Fac Was Fac Gar Combat Hostiles Destroyed 117 | . 3 2 13 2 5 26 8 8 . 1 15 2 16 16 . . . Melee 4 | . . . 3 . . . . . . . . . . 1 . . . Guns 62 | . 3 2 7 . 1 24 8 3 . . 4 . 8 2 . . . Cannons 36 | . . . . 2 4 1 . 5 . 1 7 . 6 10 . . . AOE 7 | . . . . . . . . . . . 4 1 . 2 . . . Classes Destroyed 15 | 2 1 1 4 . 1 2 1 1 . . . . 2 . . . . Worker 11 | . . . 2 . . . . . . 1 1 . 3 4 . . . Builder 8 | . . . 1 . . . . 1 . . 2 1 1 2 . . . Tunneler 2 | 1 . . . . . . . . . . . . . 1 . . . Hauler 3 | . . . . . . . 1 . . . . . . 2 . . . Recycler 9 | 1 . 1 . 1 . . . . . . . 2 1 3 . . . Operator 3 | . . . . . 1 . . . . . . . 2 . . . . Watcher 12 | . . . 4 . 1 . . 1 . . 1 1 . 4 . . . Swarmer 19 | . 3 . 6 . . 7 . . . . . . 2 1 . . . Grunt 49 | . . 2 5 2 2 13 3 5 . . 9 . 6 2 . . . Brawler 2 | . . . . . . 1 . . . . 1 . . . . . . Duelist 4 | . . . . . . 2 1 1 . . . . . . . . . Sentry 25 | . . . 2 . 3 3 4 1 . . 2 1 5 4 . . . Hunter 4 | . . . . . . . . . . . . . 1 3 . . . Programmer 13 | . . . . . . . . 1 . 1 4 1 . 6 . . . Behemoth 1 | . . . . . . . . . . . . . 1 . . . . Thug 1 | . . . . . . . . . . . . . 1 . . . . Butcher 1 | . . . . . . . . . . . . . 1 . . . . Guerrilla 1 | . . . . . . . . . . . . . 1 . . . . Best Kill Streak 11 | 1 3 3 7 2 3 6 2 4 . 1 3 1 5 11 . . . Combat Bots Only 6 | . 3 2 6 2 2 6 2 4 . 1 3 1 5 4 . . . Max Kills in Single Turn 8 | 1 2 1 2 1 1 1 1 1 . 1 2 1 1 8 . . . Gunslinging 1 | . 1 . . . . . . . . . . . . . . . . Exploded 2 | . . . . . . . . . . . 2 1 . 1 . . . Melee 1 | . . . 1 . . . . . . . . . . 1 . . . Uniques/NPCs Destroyed . | . . . . . . . . . . . . . . . . . . Combat | -11 -10 -10 -9 -9 -8 -8 -8 -7 -7 -7 -6 -5 -5 -4 -4 -4 -4 -------- Run | Yrd Mat Min Mat Min Mat Gar Mat Fac Was Fac Fac Fac Ext Fac Was Fac Gar Hostile Shots Fired 1433 | . 4 20 128 . 26 116 56 108 1 4 378 50 153 276 1 40 72 Missed 442 | . 1 4 29 . 6 37 20 29 . 2 110 9 52 100 . 13 30 Hits 991 | . 3 16 99 . 20 79 36 79 1 2 268 41 101 176 1 27 42 Melee 20 | . . . 3 . . 5 . 4 1 . 6 . . . 1 . . Projectile 971 | . 3 16 96 . 20 74 36 75 . 2 262 41 101 176 . 27 42 AOE 1 | . . . . . . . . . . . . . . 1 . . . Critical Strikes 56 | . . . 5 . 3 1 2 6 1 . 12 7 7 7 . 3 2 Actively Blocked 7 | . . . 2 . . . . . . . . . . . . 3 2 Damage Taken 17114 | . 21 202 1088 18 321 1128 542 1202 39 28 4120 1074 2089 3843 48 570 781 Core 2502 | . . 15 281 . 46 33 90 182 . 14 467 45 177 854 48 64 186 Absorbed by Shields . | . . . . . . . . . . . . . . . . . . Redirected to Shielding 69 | . . . 46 . 3 6 3 . . . . . 11 . . . . Ignored by Resistances 271 | . . . . . . . . . . . . . 271 . . . . Regen/Repaired (Parts) 455 | . . . 24 . . . . 328 . . . . 103 . . . . Core Remaining (%) 69 | 100 . 94 . 29 . . 69 . . 72 45 . 77 . . . . Volleys Fired 587 | 10 3 11 42 8 29 93 46 28 4 3 72 30 102 106 . . . Largest 3 | 2 2 2 2 2 2 2 2 2 2 2 3 2 3 3 . . . Hottest 330 | 40 40 40 53 53 53 128 128 77 77 77 118 150 186 330 . . . Shots Fired 1020 | 20 6 22 68 17 58 156 86 56 7 6 129 43 185 161 . . . Gun 619 | 20 6 22 67 8 29 147 81 24 . . 53 25 119 18 . . . Cannon 389 | . . . 1 9 29 9 5 32 7 6 69 18 64 140 . . . Launcher 6 | . . . . . . . . . . . 4 . 2 . . . . Special 6 | . . . . . . . . . . . 3 . . 3 . . . Kinetic 511 | 20 6 22 68 17 58 9 18 56 7 6 100 . 119 5 . . . Thermal 465 | . . . . . . 147 68 . . . 9 24 64 153 . . . Explosive . | . . . . . . . . . . . . . . . . . . Electromagnetic 38 | . . . . . . . . . . . 17 19 2 . . . . Robot Hit Streak 14 | 6 3 14 12 9 9 12 12 7 5 1 11 8 12 13 . . . Robot Miss Streak 5 | 2 3 1 4 2 2 5 2 2 1 3 2 5 4 3 . . . Penetration Max 2 | . . . . . . . . 1 . . 1 . 2 . . . . Secondary Targets 9 | . 1 . 1 . . 5 1 . . . . . 1 . . . . Max Gunslinging Chain 1 | . 1 . 1 . . 1 1 . . . . . 1 . . . . Capacitor 48 | . . . . . . . . . . . . . . 48 . . . Shots Hit Robots 701 | 13 3 18 58 12 41 90 65 53 11 3 99 27 115 93 . . . Core Hits 285 | 3 3 5 23 5 16 45 18 17 . 2 48 8 48 42 . 1 1 Critical Kills 11 | . . . . . 1 . . . . . . . 9 1 . . . Critical Parts Destroyed 33 | 1 . . 3 . . . . . . 1 1 . 26 1 . . . Critical Strikes 69 | 1 . . 3 2 2 9 1 2 . 1 7 2 36 3 . . . Burn 14 | . . . . . . 9 1 . . . 1 2 . 1 . . . Meltdown 2 | . . . . . . . . . . . . . 1 1 . . . Destroy 39 | 1 . . . . 1 . . . . . 1 . 35 1 . . . Blast 9 | . . . . 2 1 . . 2 . . 4 . . . . . . Smash 5 | . . . 3 . . . . . . 1 1 . . . . . . Melee Attacks 154 | . . . 16 . . . 4 44 8 12 46 13 6 5 . . . Impact 125 | . . . 16 . . . . 33 . 12 46 13 5 . . . . Slashing 6 | . . . . . . . . . . . . . 1 5 . . . Piercing . | . . . . . . . . . . . . . . . . . . Sneak Attacks 28 | . . . . . . . 4 12 . 1 4 3 4 . . . . Combat Hostiles . | . . . . . . . . . . . . . . . . . . Follow-up Attacks . | . . . . . . . . . . . . . . . . . . Damage Inflicted 18357 | 174 44 227 881 209 591 1417 1005 1223 118 219 3221 988 2767 5250 . 16 7 Guns 5729 | 174 44 227 605 39 177 1375 929 313 . . 654 284 651 257 . . . Cannons 8153 | . . . 18 170 414 42 76 683 118 87 1351 258 1602 3334 . . . Explosions 2564 | . . . . . . . . . . . 470 316 189 1589 . . . Melee 1871 | . . . 258 . . . . 227 . 132 746 130 318 60 . . . Ramming 40 | . . . . . . . . . . . . . 7 10 . 16 7 Kinetic 5780 | 174 44 227 623 209 591 42 234 996 118 87 1741 . 651 43 . . . Thermal 9693 | . . . . . . 1375 771 . . . 193 526 1716 5112 . . . Explosive 146 | . . . . . . . . . . . 121 . . 25 . . . Electromagnetic 827 | . . . . . . . . . . . 420 332 75 . . . . Impact 1811 | . . . 258 . . . . 227 . 132 746 130 318 . . . . Slashing 60 | . . . . . . . . . . . . . . 60 . . . Piercing . | . . . . . . . . . . . . . . . . . . Highest Corruption 49 | . . . 20 20 . . . . 23 23 49 24 24 8 16 21 22 Average Corruption 13 | . . . 19 20 . . . . 15 23 7 17 21 4 13 16 21 Corruption Purged 5 | . . . . . . . . . . . . . 5 . . . . Corruption Blocked . | . . . . . . . . . . . . . . . . . . Effects 297 | . . . 9 4 . . . . 12 35 38 49 83 49 3 11 4 Message Errors 76 | . . . 1 . . . . . 4 8 11 15 19 14 . 4 . Matter Fused 68 | . . . 1 1 . . . . 3 6 14 12 17 8 1 4 1 Heat Flow Errors 28 | . . . . 1 . . . . . 7 . 4 8 6 1 . 1 Energy Discharges 29 | . . . 2 . . . . . 1 4 3 4 6 7 . . 2 Parts Rejected 6 | . . . 1 . . . . . 1 . . . 4 . . . . Parts Fused 5 | . . . . . . . . . . 1 2 . 1 1 . . . Data Loss (minor) 41 | . . . . . . . . . 2 8 5 8 15 2 . 1 . Data Loss (major) 13 | . . . 2 . . . . . . . 2 3 1 4 . 1 . Misfires 8 | . . . . 1 . . . . . . . 1 3 3 . . . Alerts 7 | . . . 1 1 . . . . . 1 . . 1 3 . . . Misdirections 8 | . . . 1 . . . . . . . . . 5 . 1 1 . Weapon Failures 8 | . . . . . . . . . 1 . 1 2 3 1 . . . Overload Shots . | . . . . . . . . . . . . . . . . . . Overflow Damage 1345 | . . . 79 . 21 13 . 165 . 132 264 121 168 382 . . . Projectiles 291 | . . . . . 21 . . . . . 23 8 33 206 . . . Explosions 299 | . . . . . . 13 . . . . 43 67 . 176 . . . Melee 755 | . . . 79 . . . . 165 . 132 198 46 135 . . . . Knockbacks 33 | . . . . . 3 . . 9 . 1 20 . . . . . . Impact 4 | . . . . . . . . . . . 4 . . . . . . Kinetic 28 | . . . . . 3 . . 8 . 1 16 . . . . . . Secondary 1 | . . . . . . . . 1 . . . . . . . . . Self-Inflicted Damage 1231 | . . . . . . 75 . 32 . . 241 186 91 595 . 8 3 Shots 19 | . . . . . . 1 . 1 . . 7 2 1 7 . . . Rammed 9 | . . . . . . . . . . . . . 1 4 . 1 3 Targets Rammed 9 | . . . . . . . . . . . . . 1 4 . 1 3 Kicked . | . . . . . . . . . . . . . . . . . . Crushed . | . . . . . . . . . . . . . . . . . . Highest Temperature 570 | . . 23 12 160 166 144 198 59 . 246 291 . 570 332 101 . 140 Average Temperature 78 | . . 10 9 35 55 45 71 26 . 107 99 . 212 97 58 . 74 Received Heat Transfer 5228 | . . 108 273 9 162 360 279 648 . . 1614 54 1406 234 . 12 69 Effects 3 | . . . . . . . . . . . 2 . 1 . . . . Energy Bleed 1 | . . . . . . . . . . . . . 1 . . . . Interference 2 | . . . . . . . . . . . 2 . . . . . . Siege Activations . | . . . . . . . . . . . . . . . . . . Martial Activations . | . . . . . . . . . . . . . . . . . . Shielding Activations . | . . . . . . . . . . . . . . . . . . Robots Disrupted 1 | . . . . . . . . . . . 1 . . . . . . Combat Hostiles . | . . . . . . . . . . . . . . . . . . Robots Corrupted 8 | . . . 4 . . . . . . . 2 2 . . . . . Combat Hostiles 4 | . . . 3 . . . . . . . . 1 . . . . . Parts Fried 21 | . . . 4 . . . . 3 . 1 2 7 4 . . . . Impact Corruptions 33 | . . . 6 . . . . 5 . 3 12 2 5 . . . . Robots Melted 6 | . . . . . . 1 . . . . . 1 2 2 . . . Combat Hostiles 4 | . . . . . . 1 . . . . . . 2 1 . . . Parts Melted 24 | . . . . . . 5 3 . . . 2 . 2 12 . . . Heat Transferred 13058 | . . . . . . 3922 1961 . . . 291 742 1432 4710 . . . Parts Sabotaged 2 | . . . . . . . . . . . 2 . . . . . . Parts Stolen . | . . . . . . . . . . . . . . . . . . Parts Stripped . | . . . . . . . . . . . . . . . . . . Power Chain Reactions 3 | . . . . . . . . . . . 2 1 . . . . . Alert | -11 -10 -10 -9 -9 -8 -8 -8 -7 -7 -7 -6 -5 -5 -4 -4 -4 -4 ------- Run | Yrd Mat Min Mat Min Mat Gar Mat Fac Was Fac Fac Fac Ext Fac Was Fac Gar Maximum Alert Level 3 | . . . . . . 3 2 . . . 1 . 1 3 1 . . Low Security (%) 71 | 100 100 100 100 100 100 21 . 100 100 100 94 100 72 33 . 100 100 Level 1 10 | . . . . . . 14 58 . . . 5 . 27 5 100 . . Level 2 16 | . . . . . . 48 41 . . . . . . 55 . . . Level 3 2 | . . . . . . 16 . . . . . . . 4 . . . Level 4 . | . . . . . . . . . . . . . . . . . . Level 5 . | . . . . . . . . . . . . . . . . . . High Security . | . . . . . . . . . . . . . . . . . . Max Security . | . . . . . . . . . . . . . . . . . . Peak Influence 933 | 5 60 40 87 64 75 933 475 137 10 33 221 124 241 858 296 193 115 Initial 454 | . . . 4 21 14 22 454 137 10 . . 103 55 107 296 193 65 Average 154 | . 25 15 34 37 42 468 373 42 . 2 55 22 108 317 288 142 97 Influence Increases 5779 | 10 70 72 372 79 192 981 235 307 . 75 817 244 838 1437 . . 50 Destroy 0b10 Robot/C 2580 | . 60 40 260 60 120 520 160 160 . 20 340 40 480 320 . . . Destroy 0b10 Robot/NC 255 | 10 . 5 35 5 10 . 5 10 . 5 30 20 40 80 . . . Destroy Leader 534 | . 10 10 68 10 42 20 52 42 . 10 94 12 82 82 . . . Allied During Kill 47 | . . . . 4 4 . . . . . 5 . 33 1 . . . Successful Hack 139 | . . 17 8 . . . . 34 . 12 22 22 24 . . . . Disable Machine 585 | . . . . . 15 . . 30 . 15 15 45 45 420 . . . Anti-Garrison Action 550 | . . . . . . 350 . . . . 150 . . . . . 50 Destroy Structure 699 | . . . 1 . 1 46 3 31 . 13 86 90 74 354 . . . Partial Spotted 15 | . . . . . . . . . . . . . 15 . . . . Lose Combat Pursuer 375 | . . . . . . 45 15 . . . 75 15 45 180 . . . Influence Decreases 5704 | 10 70 60 329 95 196 83 865 580 30 75 605 342 731 812 570 183 68 Entered New Map 1688 | . . . 8 34 25 13 479 166 20 . . 109 59 114 550 83 28 Time Decay 2968 | 10 70 60 241 50 131 . 356 404 10 75 308 233 442 458 20 100 . Lost Part 860 | . . . 80 . 20 70 30 10 . . 260 . 130 220 . . 40 Lost Ally 188 | . . . . 11 20 . . . . . 37 . 100 20 . . . Squads Dispatched 41 | . 2 . 3 . 2 . . 4 . 1 13 2 6 5 . 3 . Investigation 6 | . . . 2 . . . . . . . 2 . 1 . . 1 . Extermination 11 | . . . . . . . . 2 . 1 4 1 . 3 . . . Reinforcement 17 | . 2 . 1 . 1 . . 2 . . 2 1 5 1 . 2 . Assault 3 | . . . . . . . . . . . 2 . . 1 . . . Garrison 4 | . . . . . 1 . . . . . 3 . . . . . . Intercept . | . . . . . . . . . . . . . . . . . . Searches Triggered . | . . . . . . . . . . . . . . . . . . Construction Impeded 5 | . . . . . . . . . . . . 1 3 1 . . . Haulers Reinforced 1 | . . . . . . . . . . . 1 . . . . . . Active Scanning Responses . | . . . . . . . . . . . . . . . . . . Cargo Convoy Interrupts . | . . . . . . . . . . . . . . . . . . Stealth | -11 -10 -10 -9 -9 -8 -8 -8 -7 -7 -7 -6 -5 -5 -4 -4 -4 -4 --------- Run | Yrd Mat Min Mat Min Mat Gar Mat Fac Was Fac Fac Fac Ext Fac Was Fac Gar Distress Signals 6 | . . . 2 . 1 . . . . . . . 1 2 . . . Communications Jammed . | . . . . . . . . . . . . . . . . . . Distress Signals . | . . . . . . . . . . . . . . . . . . Times Spotted 257 | . 3 5 24 3 8 29 13 10 6 1 29 5 39 45 6 11 20 Peak Tracking Total 17 | . 3 3 5 3 3 6 3 4 3 1 6 2 4 8 6 10 17 Tactical Retreats 16 | . . . . . . 3 1 . . . 3 1 3 5 . . . Traps | -11 -10 -10 -9 -9 -8 -8 -8 -7 -7 -7 -6 -5 -5 -4 -4 -4 -4 ------- Run | Yrd Mat Min Mat Min Mat Gar Mat Fac Was Fac Fac Fac Ext Fac Was Fac Gar Traps Triggered 7 | . . . . . . . . 1 . . . . . 3 . 1 2 Indirectly . | . . . . . . . . . . . . . . . . . . Trap Hack Attempts . | . . . . . . . . . . . . . . . . . . Triggered . | . . . . . . . . . . . . . . . . . . Disarmed . | . . . . . . . . . . . . . . . . . . Reprogrammed . | . . . . . . . . . . . . . . . . . . Reused . | . . . . . . . . . . . . . . . . . . Traps Extracted . | . . . . . . . . . . . . . . . . . . Installed . | . . . . . . . . . . . . . . . . . . Triggered . | . . . . . . . . . . . . . . . . . . Machines | -11 -10 -10 -9 -9 -8 -8 -8 -7 -7 -7 -6 -5 -5 -4 -4 -4 -4 ---------- Run | Yrd Mat Min Mat Min Mat Gar Mat Fac Was Fac Fac Fac Ext Fac Was Fac Gar Machines Disabled 46 | . . . 1 . 1 5 . 2 . 1 2 3 3 28 . . . Max in Single Turn 13 | . . . 1 . 1 2 . 1 . 1 1 2 2 13 . . . Garrison Access 1 | . . . . . . . . . . . 1 . . . . . . Garrison Relay 3 | . . . . . . 3 . . . . . . . . . . . Phase Generator 1 | . . . . . . 1 . . . . . . . . . . . Energy Cycler 1 | . . . . . . . . . . . . . 1 . . . . Machines Repaired . | . . . . . . . . . . . . . . . . . . Machines Dismantled . | . . . . . . . . . . . . . . . . . . Machines Sabotaged . | . . . . . . . . . . . . . . . . . . Overloaded Fab Kills . | . . . . . . . . . . . . . . . . . . Hacking | -11 -10 -10 -9 -9 -8 -8 -8 -7 -7 -7 -6 -5 -5 -4 -4 -4 -4 --------- Run | Yrd Mat Min Mat Min Mat Gar Mat Fac Was Fac Fac Fac Ext Fac Was Fac Gar Machines Accessed 45 | . . 1 6 . 2 1 3 7 . 3 5 4 6 4 . 2 1 Terminals 26 | . . 1 5 . 1 1 3 2 . 1 2 2 5 1 . 1 1 Fabricators 4 | . . . . . . . . 1 . . 1 1 . 1 . . . Repair Stations 7 | . . . 1 . . . . 3 . 1 . . 1 1 . . . Recycling Units 3 | . . . . . . . . . . 1 1 1 . . . . . Scanalyzers 1 | . . . . . . . . 1 . . . . . . . . . Garrison Access 4 | . . . . . 1 . . . . . 1 . . 1 . 1 . Total Hacks 97 | . . 2 14 . 3 3 6 16 . 7 11 10 16 5 . 2 2 Successful 33 | . . 2 3 . 2 . . 8 . 1 6 4 4 2 . 1 . Failed 64 | . . . 11 . 1 3 6 8 . 6 5 6 12 3 . 1 2 Catastrophic 21 | . . . 5 . . 1 2 3 . 3 . 2 4 1 . . . Database Lockouts . | . . . . . . . . . . . . . . . . . . Manual 44 | . . 2 11 . 2 . 6 1 . 1 4 7 10 . . . . Terminals 59 | . . 2 12 . 2 3 6 3 . 2 5 8 12 1 . 1 2 Fabricators 9 | . . . . . . . . 3 . . 4 1 . 1 . . . Repair Stations 18 | . . . 2 . . . . 7 . 4 . . 4 1 . . . Recycling Units 3 | . . . . . . . . . . 1 1 1 . . . . . Scanalyzers 3 | . . . . . . . . 3 . . . . . . . . . Garrison Access 5 | . . . . . 1 . . . . . 1 . . 2 . 1 . Terminal Hacks 13 | . . 2 2 . 1 . . 1 . . 2 2 3 . . . . Record 3 | . . . . . . . . . . . 1 1 1 . . . . Robot Analysis 1 | . . . . . . . . 1 . . . . . . . . . Open Door 2 | . . . . . . . . . . . . . 2 . . . . Level Access Points 1 | . . 1 . . . . . . . . . . . . . . . Branch Access Points 3 | . . 1 1 . . . . . . . 1 . . . . . . Terminal Index 3 | . . . 1 . 1 . . . . . . 1 . . . . . Fabricator Hacks 3 | . . . . . . . . . . . 2 1 . . . . . Load Schematic 1 | . . . . . . . . . . . 1 . . . . . . Build 2 | . . . . . . . . . . . 1 1 . . . . . Repair Station Hacks 6 | . . . . . . . . 5 . 1 . . . . . . . Scan Component 4 | . . . . . . . . 3 . 1 . . . . . . . Repair 2 | . . . . . . . . 2 . . . . . . . . . Recycling Unit Hacks 2 | . . . . . . . . . . . 1 1 . . . . . Retrieve Components 2 | . . . . . . . . . . . 1 1 . . . . . Scanalyzer 2 | . . . . . . . . 2 . . . . . . . . . Insert Component 1 | . . . . . . . . 1 . . . . . . . . . Analyze 1 | . . . . . . . . 1 . . . . . . . . . Garrison Access Hacks 5 | . . . . . 1 . . . . . 1 . . 2 . 1 . Unlock Access 3 | . . . . . 1 . . . . . . . . 1 . 1 . Coupler Status 2 | . . . . . . . . . . . 1 . . 1 . . . Unauthorized Hacks 2 | . . . 1 . . . . . . . . . 1 . . . . Terminals . | . . . . . . . . . . . . . . . . . . Fabricators . | . . . . . . . . . . . . . . . . . . Repair Stations 2 | . . . 1 . . . . . . . . . 1 . . . . Patch 2 | . . . 1 . . . . . . . . . 1 . . . . Recycling Units . | . . . . . . . . . . . . . . . . . . Scanalyzers . | . . . . . . . . . . . . . . . . . . Garrison Access . | . . . . . . . . . . . . . . . . . . Data Cores Recovered . | . . . . . . . . . . . . . . . . . . Used . | . . . . . . . . . . . . . . . . . . Hacking Detections 37 | . . . 6 . 2 1 3 6 . 3 3 3 4 4 . 1 1 Full Trace Events 4 | . . . 1 . . 1 . . . . 1 . . . . . 1 Feedback Events . | . . . . . . . . . . . . . . . . . . Feedback Blocked . | . . . . . . . . . . . . . . . . . . Robot Schematics Acquired . | . . . . . . . . . . . . . . . . . . Robots Built . | . . . . . . . . . . . . . . . . . . Authchips . | . . . . . . . . . . . . . . . . . . Time . | . . . . . . . . . . . . . . . . . . Total Robot Build Rating . | . . . . . . . . . . . . . . . . . . Part Schematics Acquired 1 | . . . . . . . . 1 . . . . . . . . . Parts Built 4 | . . . . . . . . . . . 2 2 . . . . . Authchips . | . . . . . . . . . . . . . . . . . . Time 111 | . . . . . . . . . . . 42 69 . . . . . Total Part Build Rating 26 | . . . . . . . . . . . 8 18 . . . . . Parts Repaired 2 | . . . . . . . . 2 . . . . . . . . . Time 64 | . . . . . . . . 64 . . . . . . . . . Parts Recycled . | . . . . . . . . . . . . . . . . . . Recycled Matter . | . . . . . . . . . . . . . . . . . . Retrieved Matter . | . . . . . . . . . . . . . . . . . . Retrieved Components 8 | . . . . . . . . . . . 6 2 . . . . . Parts Scanalyzed 1 | . . . . . . . . 1 . . . . . . . . . Part Schematics Acquired 1 | . . . . . . . . 1 . . . . . . . . . Parts Damaged . | . . . . . . . . . . . . . . . . . . Bothacking | -11 -10 -10 -9 -9 -8 -8 -8 -7 -7 -7 -6 -5 -5 -4 -4 -4 -4 ------------ Run | Yrd Mat Min Mat Min Mat Gar Mat Fac Was Fac Fac Fac Ext Fac Was Fac Gar Used RIF Installer 2 | . . . . . . 1 . . . . . . . . . . 1 Patrol Navigation 1 | . . . . . . . . . . . . . . . . . 1 Robots Hacked 20 | . . . . . . . 2 7 6 . 3 . . 2 . . . Non-combat 9 | . . . . . . . 2 7 . . . . . . . . . Combat 11 | . . . . . . . . . 6 . 3 . . 2 . . . Robot Hacks Applied 21 | . . . . . . . 2 8 6 . 3 . . 2 . . . parse_system 1 | . . . . . . . . 1 . . . . . . . . . start_evac 1 | . . . . . . . 1 . . . . . . . . . . map_walls 4 | . . . . . . . 1 3 . . . . . . . . . map_earth 1 | . . . . . . . . 1 . . . . . . . . . locate_traps 1 | . . . . . . . . 1 . . . . . . . . . ignore_targets 6 | . . . . . . . . . 6 . . . . . . . . link_fov 1 | . . . . . . . . 1 . . . . . . . . . scatter_targeting 1 | . . . . . . . . . . . . . . 1 . . . overload_power 1 | . . . . . . . . 1 . . . . . . . . . overwrite_iff 2 | . . . . . . . . . . . 1 . . 1 . . . formatsys_high 2 | . . . . . . . . . . . 2 . . . . . . Relay Couplers Released 13 | . . . . . . 9 . . . . 1 . . 3 . . . Machine Destruction 10 | . . . . . . 9 . . . . 1 . . . . . . Programmers 3 | . . . . . . . . . . . . . . 3 . . . Attached 7 | . . . . . . . 1 2 . . 2 . 1 1 . . . Fabnet Peak Effective % . | . . . . . . . . . . . . . . . . . . Robots Rewired 10 | . . . . . . . . . . . . . 10 . . . . Allies Hacked . | . . . . . . . . . . . . . . . . . . Hacks Repelled . | . . . . . . . . . . . . . . . . . . Allies | -11 -10 -10 -9 -9 -8 -8 -8 -7 -7 -7 -6 -5 -5 -4 -4 -4 -4 -------- Run | Yrd Mat Min Mat Min Mat Gar Mat Fac Was Fac Fac Fac Ext Fac Was Fac Gar Total Allies 17 | . . . . 2 . . . . . . 3 . 10 1 1 . . Largest Group 4 | . . . . 2 1 . . . . . 1 . 4 2 1 . . Highest-Rated Group 126 | . . . . 45 31 . . . . . 32 . 126 59 46 . . Highest-Rated Ally 46 | . . . . 31 31 . . . . . 32 . 39 42 46 . . Total Orders . | . . . . . . . . . . . . . . . . . . Ally Attacks 101 | . . . . 13 9 . . . . . 16 . 53 3 7 . . Total Damage 1887 | . . . . 187 106 . . . . . 509 . 882 44 159 . . Kills 15 | . . . . 1 1 . . . . . 3 . 10 . . . . Allies Corrupted . | . . . . . . . . . . . . . . . . . . Allies Melted . | . . . . . . . . . . . . . . . . . . Intel | -11 -10 -10 -9 -9 -8 -8 -8 -7 -7 -7 -6 -5 -5 -4 -4 -4 -4 ------- Run | Yrd Mat Min Mat Min Mat Gar Mat Fac Was Fac Fac Fac Ext Fac Was Fac Gar Active Infowar (turns) 6917 | . . . 267 . . . . . . 566 1675 1091 1134 1976 . 149 59 Sensors 4142 | . . . . . . . . . . 566 1675 . . 1901 . . . IFF 3 | . . . . . . . . . . . . . . 3 . . . Terrain 4025 | . . . 267 . . . . . . . . 1091 1134 1326 . 148 59 Jamming 1 | . . . . . . . . . . . . . . . . 1 . Robot Analysis Total 1 | . . . . . . . . 1 . . . . . . . . . Derelict Logs Recovered 1 | . . . . 1 . . . . . . . . . . . . . Drone Launches . | . . . . . . . . . . . . . . . . . . Drone Recoveries . | . . . . . . . . . . . . . . . . . . Exploration | -11 -10 -10 -9 -9 -8 -8 -8 -7 -7 -7 -6 -5 -5 -4 -4 -4 -4 ------------- Run | Yrd Mat Min Mat Min Mat Gar Mat Fac Was Fac Fac Fac Ext Fac Was Fac Gar Turns Passed 13794 | 115 166 147 633 137 286 1343 816 1371 284 783 2301 1241 1607 2228 47 219 70 Spaces Moved 6172 | 49 96 67 255 66 119 634 352 555 135 417 922 420 564 939 91 388 103 Core 835 | 7 . . 3 . . . . . . . 6 1 . 238 91 388 101 Treads 4178 | 42 96 67 121 . 6 634 352 555 135 417 880 49 151 671 . . 2 Legs 217 | . . . . . . . . . . . 23 . 194 . . . . Wheels 942 | . . . 131 66 113 . . . . . 13 370 219 30 . . . Hover . | . . . . . . . . . . . . . . . . . . Flight . | . . . . . . . . . . . . . . . . . . Fastest Speed 50 | 50 160 160 110 155 155 160 160 160 160 160 155 170 108 50 50 50 50 Average Speed 164 | 149 160 160 168 155 155 160 160 160 160 160 186 226 188 185 50 50 51 Slowest Speed 1450 | 160 160 160 750 155 160 160 160 160 160 160 1250 1450 480 240 50 50 150 Overloaded Moves . | . . . . . . . . . . . . . . . . . . Propulsion Burnouts . | . . . . . . . . . . . . . . . . . . Robots Hopped . | . . . . . . . . . . . . . . . . . . Potential Cave-ins 2 | . . . . . . . . . . . . . . 2 . . . Cave-ins Triggered . | . . . . . . . . . . . . . . . . . . Exploration Rate (%) 31 | 4 21 25 31 26 17 77 27 14 96 8 18 7 57 26 73 11 31 Regions Visited 17 Branch Regions 3 Pre-discovered Areas . | . . . . . . . . . . . . . . . . . . Known Exits Taken 5 | . . 1 1 . 1 . . . . 1 . . . . . 1 . Unknown Exits Taken 7 | 1 1 . . 1 . . 1 . . . 1 1 1 . . . . Scrap Searched . | . . . . . . . . . . . . . . . . . . Spaces Dug 97 | . . . 1 . . . . 30 . 10 26 10 2 18 . . . Terrain Destroyed 513 | . . . 1 . . 79 2 30 . 12 99 49 40 201 . . . Melee 74 | . . . 1 . . . . 30 . 10 26 6 1 . . . . Projectile 91 | . . . . . . . 2 . . 2 17 4 19 47 . . . AOE 343 | . . . . . . 79 . . . . 56 39 15 154 . . . Terrain Rammed . | . . . . . . . . . . . . . . . . . . Walls Destroyed . | . . . . . . . . . . . . . . . . . . Machines Disabled . | . . . . . . . . . . . . . . . . . . Actions | -11 -10 -10 -9 -9 -8 -8 -8 -7 -7 -7 -6 -5 -5 -4 -4 -4 -4 --------- Run | Yrd Mat Min Mat Min Mat Gar Mat Fac Was Fac Fac Fac Ext Fac Was Fac Gar Total 8667 | 69 102 85 358 85 167 814 522 927 194 511 1302 643 933 1330 91 413 121 Wait 1072 | . . 7 17 6 8 35 69 249 40 58 182 160 46 184 1 2 8 Move 6158 | 48 95 66 254 65 119 632 351 555 134 416 921 419 563 939 90 388 103 Hop . | . . . . . . . . . . . . . . . . . . Pick Up 122 | 5 2 1 7 4 4 22 16 8 1 6 15 3 14 9 . 5 . Fast Attach 120 | 4 1 . 10 . 4 2 3 3 2 3 19 6 36 21 . 6 . Attach 68 | 2 . . 6 . . 7 3 3 2 1 13 4 6 15 . 3 3 Detach 32 | . . . 2 . 1 . 2 1 . 3 6 1 7 5 . 1 3 Swap 98 | . 1 . 3 2 . 5 11 25 2 2 18 3 12 14 . . . Drop 129 | . . . 1 . 2 18 17 11 1 7 10 4 23 28 . 7 . Fire 587 | 10 3 11 42 8 29 93 46 28 4 3 72 30 102 106 . . . Melee 154 | . . . 16 . . . 4 44 8 12 46 13 6 5 . . . Ram 9 | . . . . . . . . . . . . . 1 4 . 1 3 Kick . | . . . . . . . . . . . . . . . . . . Crush . | . . . . . . . . . . . . . . . . . . Escape Stasis 1 | . . . . . . . . . . . . . . . . . 1 Rewire 117 | . . . . . . . . . . . . . 117 . . . . Trap . | . . . . . . . . . . . . . . . . . . Miscellaneous . | . . . . . . . . . . . . . . . . . . Route ------- -11/Scrapyard -10/Materials -10/Mines (discovered 2 exits: *Mat x2) -9/Materials -9/Mines -8/Materials -8/Garrison (discovered 2 exits: *Mat x2) -8/Materials -7/Factory -7/Waste -7/Factory -6/Factory (discovered 3 exits: *Fac / Low x2) -5/Factory -5/Extension -4/Factory -4/Waste -4/Factory -4/Garrison History --------- Turn | Location | Event 10 | -11/Scrapyard | Discovered new exit (range 15) 116 | -11/Scrapyard | Entered Materials 194 | -10/Materials | Discovered new exit (range 8) 282 | -10/Materials | Entered Mines 306 | -10/Mines | Build established: Mutant 306 | -10/Mines | Met a Derelict bent on vengeance 394 | -10/Mines | Discovered new exit (range 13) 418 | -10/Mines | Identified exit to Materials 429 | -10/Mines | Entered Materials 429 | -9/Materials | Evolved 2 slots: Propulsion x1, Utility x1 847 | -9/Materials | Lost 8 parts (2p2n1u3w) 869 | -9/Materials | Identified exit to Mines 908 | -9/Materials | Core integrity fell below 50% 916 | -9/Materials | System corruption reached 10% 1062 | -9/Materials | Entered Mines 1178 | -9/Mines | Discovered new exit (range 11) 1199 | -9/Mines | Entered Materials 1199 | -8/Materials | Accompanied by 1 ally 1199 | -8/Materials | Evolved 2 slots: Propulsion x1, Utility x1 1204 | -8/Materials | Led the pair of lost Derelicts to an unsafe place 1230 | -8/Materials | Build established: Scavenger-Mutant 1369 | -8/Materials | Garrison activated, responded to threat 1485 | -8/Materials | Identified exit to Garrison 1485 | -8/Materials | Entered Garrison 1519 | -8/Garrison | Triggered checkpoint 1629 | -8/Garrison | Phase Generator disabled 1748 | -8/Garrison | Garrison Relay disabled 2135 | -8/Garrison | Triggered checkpoint 2237 | -8/Garrison | Discovered new exit (range 9) 2332 | -8/Garrison | Garrison Relay disabled 2501 | -8/Garrison | Triggered checkpoint 2606 | -8/Garrison | Lost 3 parts (2u1w) 2669 | -8/Garrison | Triggered checkpoint 2687 | -8/Garrison | Installed Relay Interface Framework 2709 | -8/Garrison | Garrison Relay disabled 2804 | -8/Garrison | Discovered new exit (range 15) 2828 | -8/Garrison | Entered Materials 3417 | -8/Materials | Build established: Bothacker-Mutant 3641 | -8/Materials | Discovered new exit (range 3) 3644 | -8/Materials | Entered Factory 3644 | -7/Factory | Evolved 2 slots: Utility x2 3645 | -7/Factory | Identified exit to Storage 3740 | -7/Factory | Repaired Lgt. Treads 4663 | -7/Factory | Repaired Hrd. Medium Armor Plating 5015 | -7/Factory | Sucked down chute 5015 | -7/Factory | Entered Waste 5030 | -7/Waste | EMP discharged 5030 | -7/Waste | System corruption reached 10% 5042 | -7/Waste | Spotted C-40 Crusher 5077 | -7/Waste | Spotted C-40 Crusher 5085 | -7/Waste | Spotted C-40 Crusher 5091 | -7/Waste | Spotted C-40 Crusher 5095 | -7/Waste | Spotted C-40 Crusher 5130 | -7/Waste | EMP discharged 5143 | -7/Waste | Crushed by Compactor (1 part destroyed, 2 dropped) 5159 | -7/Waste | Spotted C-40 Crusher 5230 | -7/Waste | EMP discharged 5242 | -7/Waste | Discovered new exit (range 16) 5299 | -7/Waste | Entered Factory 5599 | -7/Factory | Discovered new exit (range 7) 5636 | -7/Factory | Identified exit to Factory 6082 | -7/Factory | Entered another Factory area 6082 | -6/Factory | Evolved 2 slots: Utility x1, Weapon x1 6501 | -6/Factory | Fabricated Gauss Rifle (x2) 6860 | -6/Factory | Garrison activated, responded to threat 7600 | -6/Factory | Identified exit to Lower Caves 7833 | -6/Factory | Lost 12 parts (2p4n4u2w) 8079 | -6/Factory | Discovered new exit (range 11) 8267 | -6/Factory | System corruption reached 10% 8274 | -6/Factory | Lost 9 parts (1p2n4u2w) 8291 | -6/Factory | System corruption reached 30% 8332 | -6/Factory | Core integrity fell below 50% 8383 | -6/Factory | Entered another Factory area 8383 | -5/Factory | Evolved 2 slots: Utility x2 8439 | -5/Factory | System corruption reached 10% 8736 | -5/Factory | Build established: Scavenger-Mutant 9017 | -5/Factory | Fabricated Enh. Nova Cannon? 9532 | -5/Factory | Lost 3 parts (2n1u) 9566 | -5/Factory | Discovered new exit (range 12) 9624 | -5/Factory | Entered Extension 9924 | -5/Extension | Disrupted transfer network 10158 | -5/Extension | Energy Cycler disabled 10159 | -5/Extension | Rescued a captive Derelict 10159 | -5/Extension | Rescued a captive Derelict 10159 | -5/Extension | Rescued a captive Derelict 10431 | -5/Extension | Lost 3 allies 10843 | -5/Extension | Build established: Scavenger-Tank 10993 | -5/Extension | Spotted B-75 Beast 11061 | -5/Extension | Destroyed B-75 Beast 11094 | -5/Extension | Lost 4 parts (2u2w) 11177 | -5/Extension | Discovered new exit (range 14) 11231 | -5/Extension | Entered Factory 11231 | -4/Factory | Accompanied by 1 ally 11231 | -4/Factory | Evolved 2 slots: Power x1, Utility x1 11780 | -4/Factory | Build established: Scavenger-Gunner 12018 | -4/Factory | Lost 3 parts (1n2u) 12549 | -4/Factory | Identified exit to Garrison 12981 | -4/Factory | First assault squad dispatched 12996 | -4/Factory | Found Unknown Device 12996 | -4/Factory | Identified Quantum Capacitor 13320 | -4/Factory | Released all parts (8) 13350 | -4/Factory | Lost 13 parts (1p3n6u3w) 13429 | -4/Factory | Core integrity fell below 50% 13459 | -4/Factory | Sucked down chute 13459 | -4/Factory | Entered Waste 13460 | -4/Waste | Met a frightened Derelict 13474 | -4/Waste | EMP discharged 13474 | -4/Waste | System corruption reached 10% 13474 | -4/Waste | Spotted C-40 Crusher 13474 | -4/Waste | Spotted C-40 Crusher 13482 | -4/Waste | Spotted C-40 Crusher 13483 | -4/Waste | Spotted C-40 Crusher 13490 | -4/Waste | Spotted C-40 Crusher 13492 | -4/Waste | Spotted C-40 Crusher 13500 | -4/Waste | Discovered new exit (range 11) 13506 | -4/Waste | Entered Factory 13534 | -4/Factory | Build established: Mutant 13587 | -4/Factory | Found Quantum Capacitor 13657 | -4/Factory | Core integrity fell below 20% 13725 | -4/Factory | Identified exit to Garrison 13725 | -4/Factory | Entered Garrison 13734 | -4/Garrison | Expanded RIF knowledge: Patrol Navigation 13753 | -4/Garrison | Spotted B-86 Titan 13789 | -4/Garrison | Triggered checkpoint 13795 | -4/Garrison | Destroyed by S-27 Virus with Autogun Last Messages --------------- 13764_ Machine disabled. 13764_ Slug penetrates Wall. 13766_ Ended siege mode. 13766_ Acquired 4 matter. 13767_ Adv. Medium Treads destroyed. 13768_ Acquired 4 matter. 13768_ Slug penetrates Wall. 13773_ System corrupted: Energy discharge (-35). 13782_ Slammed into S-27 Virus. 13783_ Imp. Heavy Treads broken. 13783_ Destabilizing: Short circuit. 13784_ Slammed into S-27 Virus. 13784_ Adv. Terrain Scanner destroyed. 13784_ System corrupted by crushing effect (+1). Garrison Door activated. 13788_ System corrupted: Energy discharge (-19). 13789_ Beams of light sweep through the air. An alarm sounds. 13790_ S-27 Virus destroyed. 13791_ Broken Imp. Heavy Treads destroyed. 13792_ Adv. Medium Treads destroyed. Map ----- +----------------------------------------------------+ | ?????????????????????????????????????????????????? | | ?????????????????????????????????????????????????? | | ???########??????????????????????????????????????? | | ??""""""""""?????????????????????????????????????? | | ##"!!!!!!"""#????????????????????????????????????? | | ""#????????????????????????????????????? | | !"#????????????????????????????????????? | | ## !"#????????????????????????????????????? | | #? !"#????????????????????????????????????? | | #? !"#????????????????????????????????????? | | #? ""#????????????????????????????????????? | | #??!!!!!!"""?????????????????????????????????????? | | #??"""""""""?????????????????????????????????????? | | #??########??????????????????????????????????????? | | #????????????????????????????????????????????????? | | #????????????????????????????????????????????????? | | #????????????????????????????????????????????????? | | #????????????????????????????????????????????????? | | #????????????????????????????????????????????????? | | #????????????????????????????????????????????????? | | #????????????????????????????????????????????????? | | #????????????????????????????????????????????????? | | #???????????######???????????????????????????????? | | #???????????# #???????????????????????????????? | | #??????###### ########### #### #????????????? | | ######## s sss @ #????????????? | | =* #????????????? | | [%= g #????????????? | | ######## ## ## ###############????????????? | | ???????# ## ## #??????????????????????????? | | ?????? "??????????????????????????? | | ?????# "??????????????????????????? | | ?????# "??????????????????????????? | | ?????# "??????????????????????????? | | ?????### ## g ## #??????????????????????????? | | ???????# ## ## ^ #??????????????????????????? | | ???????# ??????????????????????????? | | ???????# ??????????????????????????? | | ???????# #??????????????????????????? | | ???????# ##""""## ##??????????????????????????? | | ???????? #??????? ????????????????????????????? | | ???????? ??????????????????????????????????????? | | ?????????????????????????????????????????????????? | | ?????????????????????????????????????????????????? | | ?????????????????????????????????????????????????? | | ?????????????????????????????????????????????????? | | ?????????????????????????????????????????????????? | | ?????????????????????????????????????????????????? | | ?????????????????????????????????????????????????? | | ?????????????????????????????????????????????????? | +----------------------------------------------------+ Best States ------------- Heat Dissipation 116 Coolant Potential 100 Energy Generation 37 Energy Capacity 360 Matter Stores 300 Matter Capacity 300 Sight Range 16 Robot Scan Range 16 Terrain Scan Range 24 Terrain Scan Density 10 Base Temperature (-) 200 EM Shielding 2 Armor Coverage 750 Resistance: TH 20 Core Shielding 30 Phase Shifting 5 Evasion (%) 50 Targeting Accuracy 8 Armor Integrity Analysis 30 Recoil Reduction 4 Kinecelleration 30 Defensive Hacking 10 Relay Coupler Types 2 Relay Coupler Value 46 Item Schematics ----------------- Gauss Rifle | -7/Factory | Scanalyzed Robot Schematics ------------------ None Fabricated ------------ Gauss Rifle | x2 | -6/Factory Enh. Nova Cannon | x2 | -5/Factory | Preloaded Repaired ---------- Lgt. Treads | 15% | -7/Factory Hrd. Medium Armor Plating | 12% | -7/Factory Alien Tech Used ----------------- None Achievements -------------- Below It Was An Accident, I Swear Streaker Challenges ------------ None Game ------ Seed DeliveryHugeMinigun Manual? 0 Play Time 02:33:32 Cumulative 67.9 hours Start 2025.10.19 @ 11:21:21 End 2025.10.19 @ 14:20:14 Sessions 1 Manual Loads 0 Difficulty Rogue Special Mode None Game No. 59 Rogue 59 Adventurer 0 Explorer 0 Win Type - Total 0 Types 0/0/0/0/0/0/0/0/0/0 Lore% 28 Gallery% 43 Achievement% 37 Wizard Run 0 Options --------- Layout 0 ASCII 0 Keyboard 0 Movement Mouse Keybinds 0 Fullscreen 1 Font 36/Smallcaps Map View 76x50 Zoom Use 0% Tactical HUD 1 Map Filters NONE Filters NONE Steam 1 RUN: 4d393d91-7d39-42f8-975c-1581fb1037db